bitfinex-derivatives/quotes_SOLF0:USTF0_20260311
["timestamp","ask_amount","ask_price","bid_price","bid_amount"]
[1773216144599,0.08149526,85.396,85.374,10.541]
[1773216147406,0.08149526,85.396,85.38,2.63093357]
[1773216147601,3.88969652,85.432,85.39,2.63093357]
[1773216148105,21.052,85.498,85.381,2.12653265]
[1773216148106,3.88969652,85.429,85.383,10.54]
[1773216149301,3.88969652,85.429,85.381,2.12653265]
[1773216149302,3.88969652,85.419,85.373,10.541]
[1773216149803,3.88969652,85.419,85.396,0.0747646]
[1773216149998,3.88969652,85.419,85.373,10.541]
[1773216150898,3.88969652,85.419,85.37,2.63093357]
[1773216150899,3.88969652,85.409,85.365,2.1225878]
[1773216151105,3.88969652,85.409,85.361,10.542]
[1773216151406,3.88969652,85.399,85.36,2.63093357]
[1773216151905,3.88969652,85.399,85.311,29.15061623]
[1773216151906,3.88969652,85.389,85.34,2.63093357]
[1773216152208,0.07730273,85.394,85.338,2.26429165]
[1773216152209,3.88969652,85.379,85.338,2.26429165]
[1773216152898,3.88969652,85.392,85.351,2.24293761]
[1773216153402,3.88969652,85.392,85.362,10.542]
[1773216153601,3.88969652,85.392,85.363,0.0763466]
[1773216154102,3.88969652,85.409,85.364,10.542]
[1773216154406,3.88969652,85.409,85.364,12.70839118]
[1773216154909,2.63093357,85.4,85.364,12.70839118]
[1773216155109,2.63093357,85.4,85.378,0.07737645]
[1773216155310,3.88969652,85.409,85.378,0.07737645]
[1773216156510,14.4176059,85.467,85.378,0.07737645]
[1773216156511,6.52063009,85.43,85.381,2.2032393]
[1773216156904,3.88969652,85.429,85.39,2.63093357]
[1773216157207,3.88969652,85.429,85.386,10.539]
[1773216158407,3.88969652,85.429,85.399,0.07822237]
[1773216159610,3.97081336,85.409,85.371,11.8]
[1773216161509,3.97081336,85.409,85.372,10.541]
[1773216162607,3.97081336,85.409,85.37,2.63093357]
[1773216162811,3.97081336,85.408,85.362,10.542]
[1773216163012,0.07607849,85.399,85.36,2.63093357]
[1773216163207,0.07607849,85.399,85.374,10.541]
[1773216163413,6.60174693,85.43,85.39,2.63093357]
[1773216163613,3.97081336,85.429,85.39,2.63093357]
[1773216164317,3.97081336,85.429,85.393,10.538]
[1773216164512,2.63093357,85.44,85.4,2.63093357]
[1773216164709,2.63093357,85.44,85.401,0.07611247]
[1773216165214,14.50281336,85.443,85.401,0.07611247]
[1773216165415,3.97081336,85.443,85.402,2.17025573]
[1773216166309,3.97081336,85.443,85.404,10.537]
[1773216168913,2.63093357,85.45,85.411,2.20399798]
[1773216169414,3.97081336,85.456,85.411,2.20399798]
[1773216170312,3.97081336,85.456,85.425,0.07779361]
[1773216172814,3.75583986,85.449,85.4,2.63093357]
[1773216173111,3.83450704,85.449,85.4,2.63093357]
[1773216173313,3.83450704,85.449,85.409,10.536]
[1773216174715,3.83450704,85.449,85.4,2.63093357]
[1773216175619,3.83450704,85.449,85.4,4.88601193]
[1773216175812,3.83450704,85.449,85.401,2.25507836]
[1773216176115,3.83450704,85.449,85.41,10.536]
[1773216176314,3.83450704,85.449,85.41,13.16693357]
[1773216177321,3.83450704,85.449,85.418,10.535]
[1773216178519,3.83450704,85.449,85.401,2.25507836]
[1773216178520,3.83450704,85.449,85.409,10.536]
[1773216181923,3.83450704,85.449,85.339,11.71]
[1773216181924,3.75583986,85.429,85.389,2.17444132]
[1773216182829,2.63093357,85.42,85.384,2.18541444]
[1773216183323,0.07841286,85.413,85.384,2.18541444]
[1773216186328,0.07841286,85.413,85.393,10.538]
[1773216186529,3.83425272,85.413,85.371,2.20197358]
[1773216186731,3.75583986,85.409,85.371,2.20197358]
[1773216186931,3.75583986,85.389,85.347,2.20393147]
[1773216187932,0.07599045,85.377,85.347,2.20393147]
[1773216188334,0.07599045,85.377,85.348,12.74793147]
[1773216188922,0.07599045,85.377,85.353,10.543]
[1773216199139,0.07599045,85.377,85.36,10.542]
[1773216199839,2.63093357,85.39,85.36,10.542]
[1773216200032,0.07899559,85.377,85.36,10.542]
[1773216201333,0.07899559,85.377,85.344,11.8]
[1773216201538,4.08609356,85.377,85.344,11.8]
[1773216202043,4.08609356,85.377,85.342,2.29611971]
[1773216202342,4.08609356,85.377,85.345,10.544]
[1773216202540,4.00709797,85.377,85.345,10.544]
[1773216203743,4.00709797,85.377,85.345,12.84067043]
[1773216203941,0.07951136,85.37,85.345,12.84067043]
[1773216204741,0.07951136,85.37,85.348,2.30508026]
[1773216205047,0.07951136,85.37,85.351,2.30508026]
[1773216205841,0.07951136,85.37,85.355,2.30508026]
[1773216206231,4.00709797,85.399,85.355,2.30508026]
[1773216207440,4.00709797,85.399,85.356,12.55546647]
[1773216207740,4.00709797,85.399,85.368,0.07677349]
[1773216208336,2.63360548,85.39,85.368,0.07677349]
[1773216208732,4.00709797,85.399,85.368,0.07677349]
[1773216209341,2.63360548,85.43,85.381,2.01038484]
[1773216209536,4.00709797,85.43,85.381,2.01038484]
[1773216209733,2.63360548,85.42,85.382,11.8]
[1773216209939,4.00709797,85.419,85.379,13.81038484]
[1773216210341,4.00709797,85.419,85.397,0.07622798]
[1773216210538,4.00709797,85.429,85.397,0.07622798]
[1773216215251,4.00709797,85.419,85.375,2.01942699]
[1773216215743,4.00709797,85.419,85.385,2.09565497]
[1773216215949,0.07739782,85.422,85.39,2.63360548]
[1773216216341,6.64070345,85.43,85.391,2.09565497]
[1773216216551,4.00709797,85.43,85.391,2.09565497]
[1773216217343,6.64070345,85.43,85.399,10.538]
[1773216218341,4.0082021,85.429,85.399,10.538]
[1773216219339,0.07807295,85.423,85.399,10.538]
[1773216225144,4.08627505,85.423,85.39,10.539]
[1773216225448,4.0082021,85.419,85.39,10.539]
[1773216229347,0.07807295,85.423,85.39,10.539]
[1773216229548,0.07807295,85.423,85.394,2.11649854]
[1773216230350,0.07807295,85.423,85.396,10.538]
[1773216230756,4.07990466,85.423,85.383,2.11104166]
[1773216232351,4.07990466,85.423,85.389,10.539]
[1773216234251,4.07990466,85.423,85.383,2.11104166]
[1773216234252,4.07990466,85.423,85.393,10.538]
[1773216240146,0.07807295,85.423,85.391,2.16561093]
[1773216240845,0.07807295,85.423,85.4,2.16771736]
[1773216243051,4.00183171,85.444,85.404,2.1900893]
[1773216243356,4.00183171,85.439,85.404,2.1900893]
[1773216244456,4.00183171,85.439,85.413,0.07941038]
[1773216245063,6.63543719,85.42,85.387,10.539]
[1773216246551,4.00183171,85.42,85.387,10.539]
[1773216246961,0.07928198,85.412,85.387,10.539]
[1773216248257,0.07928198,85.412,85.381,2.27275622]
[1773216248561,0.07928198,85.412,85.382,2.26832879]
[1773216249358,0.07928198,85.412,85.382,12.80832879]
[1773216254560,0.07928198,85.412,85.383,2.27070149]
[1773216254759,0.07928198,85.412,85.391,2.27070149]
[1773216255465,4.00183171,85.432,85.391,2.27070149]
[1773216255664,2.63360548,85.44,85.396,2.27070149]
[1773216257770,2.63360548,85.44,85.409,0.07604946]
[1773216259064,4.00183171,85.445,85.41,2.23696013]
[1773216259269,2.63360548,85.44,85.41,2.23696013]
[1773216259870,14.36096703,85.439,85.409,0.07604946]
[1773216260370,3.82796703,85.439,85.409,0.07604946]
[1773216261662,3.82796703,85.551,85.431,2.23835204]
[1773216261868,2.63360548,85.5,85.451,2.23835204]
[1773216262063,3.82796703,85.504,85.461,2.23835204]
[1773216262269,2.63360548,85.5,85.461,2.23835204]
[1773216262569,6.46157251,85.5,85.474,0.07814728]
[1773216262869,3.82796703,85.499,85.474,0.07814728]
[1773216264863,2.63360548,85.49,85.474,0.07814728]
[1773216265671,2.6267339,85.49,85.474,0.07814728]
[1773216266474,2.6267339,85.49,85.39,35.11]
[1773216266475,3.82796703,85.479,85.432,2.30105744]
[1773216266976,3.82796703,85.479,85.428,11.8]
[1773216266977,2.6267339,85.49,85.442,2.29948188]
[1773216267177,2.6267339,85.49,85.451,2.29948188]
[1773216267378,3.82796703,85.489,85.451,2.29948188]
[1773216267875,0.07379221,85.479,85.451,2.29948188]
[1773216274878,3.82796703,85.504,85.461,2.14164103]
[1773216275078,3.82796703,85.504,85.47,2.6267339]
[1773216276184,3.82796703,85.504,85.461,2.14164103]
[1773216276381,3.82796703,85.504,85.462,2.14164103]
[1773216277179,2.6267339,85.51,85.462,2.14164103]
[1773216277382,2.6267339,85.51,85.466,2.14264499]
[1773216278685,6.50270695,85.51,85.466,2.14264499]
[1773216279780,6.50270695,85.51,85.479,0.0780758]
[1773216281985,3.87597305,85.509,85.479,0.0780758]
[1773216282984,10.523,85.518,85.48,2.15888591]
[1773216283785,2.6267339,85.51,85.48,2.15888591]
[1773216284391,2.6267339,85.51,85.469,2.15888591]
[1773216284790,2.6267339,85.51,85.486,0.07811004]
[1773216287695,3.87597305,85.518,85.486,0.07811004]
[1773216288095,2.6267339,85.51,85.486,0.07811004]
[1773216289196,3.87597305,85.509,85.486,0.07811004]
[1773216289587,3.87597305,85.509,85.464,10.53]
[1773216289791,6.53354677,85.5,85.464,10.53]
[1773216290199,3.90681287,85.535,85.481,2.23466068]
[1773216290500,3.90681287,85.519,85.481,2.23466068]
[1773216290704,3.90681287,85.519,85.47,4.85718287]
[1773216290898,3.90681287,85.519,85.471,2.23044897]
[1773216291094,0.07801656,85.509,85.471,2.23044897]
[1773216291699,0.07801656,85.509,85.478,10.528]
[1773216291897,0.07801656,85.509,85.478,12.75844897]
[1773216292099,0.07801656,85.509,85.481,2.23044897]
[1773216292597,3.90681287,85.519,85.481,2.23044897]
[1773216293100,0.08242515,85.504,85.481,2.23044897]
[1773216293501,0.08242515,85.504,85.483,2.24497603]
[1773216293710,0.08242515,85.504,85.455,11.78]
[1773216293711,3.98923802,85.504,85.461,2.24497603]
[1773216293899,3.90681287,85.499,85.463,10.53]
[1773216294298,0.08242515,85.504,85.446,11.78]
[1773216294299,0.08242515,85.504,85.471,2.24497603]
[1773216294897,2.6267339,85.51,85.471,2.24497603]
[1773216295099,6.53354677,85.51,85.475,10.528]
[1773216295303,0.08034496,85.496,85.471,2.24497603]
[1773216295505,0.08034496,85.496,85.46,4.90243456]
[1773216295805,0.08034496,85.496,85.461,2.27570066]
[1773216297407,0.08034496,85.496,85.463,2.25775352]
[1773216297912,2.6267339,85.49,85.45,2.25775352]
[1773216298206,3.90681287,85.489,85.45,2.25775352]
[1773216298603,3.90681287,85.507,85.47,2.6267339]
[1773216298803,3.90681287,85.507,85.47,4.89386733]
[1773216299806,0.07923131,85.497,85.47,4.89386733]
[1773216300709,6.53354677,85.55,85.491,2.2552072]
[1773216301008,3.90681287,85.549,85.501,2.2552072]
[1773216301208,3.90681287,85.549,85.501,12.7802072]
[1773216302110,3.90681287,85.548,85.516,0.08005751]
[1773216304914,199.39736654,85.671,85.516,0.08005751]
[1773216304915,3.90681287,85.559,85.516,2.31800424]
[1773216305115,3.90681287,85.559,85.521,2.23794673]
[1773216305814,2.6267339,85.57,85.521,2.23794673]
[1773216306114,3.90681287,85.569,85.521,2.23794673]
[1773216307007,3.90681287,85.569,85.53,2.6267339]
[1773216307214,3.90681287,85.569,85.536,0.07976002]
[1773216307410,3.90681287,85.559,85.51,4.83488171]
[1773216307712,2.6267339,85.55,85.511,2.28790783]
[1773216308113,6.53354677,85.55,85.511,2.28790783]
[1773216308810,0.07595486,85.539,85.511,2.28790783]
[1773216310917,0.07595486,85.539,85.52,2.6267339]
[1773216311113,0.07595486,85.539,85.52,4.77527996]
[1773216311517,0.07595486,85.539,85.521,2.14854606]
[1773216312319,3.90681287,85.579,85.531,2.14854606]
[1773216312614,3.90681287,85.579,85.54,2.6267339]
[1773216312921,3.90681287,85.579,85.531,2.14854606]
[1773216314213,3.90681287,85.577,85.531,2.14854606]
[1773216314414,3.90681287,85.569,85.52,2.6267339]
[1773216314612,3.90681287,85.569,85.521,2.20485855]
[1773216315220,3.90681287,85.569,85.53,2.6267339]
[1773216316122,11.78,85.624,85.508,11.78]
[1773216316123,3.90681287,85.583,85.55,2.6267339]
[1773216318125,3.90681287,85.583,85.558,0.07689604]
[1773216319823,10.517,85.566,85.526,2.22342776]
[1773216320019,3.97091995,85.565,85.526,2.22342776]
[1773216320425,3.97091995,85.559,85.511,2.22342776]
[1773216320823,11.78,85.605,85.5,2.6267339]
[1773216320824,3.97091995,85.549,85.5,2.6267339]
[1773216321420,3.97091995,85.538,85.497,2.24597304]
[1773216322223,0.07691164,85.526,85.497,2.24597304]
[1773216322823,0.07691164,85.526,85.49,2.6267339]
[1773216323223,0.07691164,85.526,85.491,2.18544555]
[1773216323422,0.07691164,85.526,85.5,2.6267339]
[1773216323929,14.49291995,85.525,85.48,2.6267339]
[1773216324526,14.49291995,85.525,85.48,4.81217945]
[1773216325226,14.49291995,85.525,85.481,2.20477546]
[1773216325427,0.07626127,85.511,85.481,2.20477546]
[1773216327126,8.6939969,85.565,85.46,11.78]
[1773216327127,3.97091995,85.538,85.491,2.11938958]
[1773216327323,3.97091995,85.552,85.511,2.11938958]
[1773216327831,2.6227687,85.55,85.511,2.11938958]
[1773216328229,3.97091995,85.548,85.5,2.6227687]
[1773216329127,3.97091995,85.548,85.515,0.07599793]
[1773216329328,10.52,85.547,85.515,0.07599793]
[1773216332735,14.49091995,85.547,85.515,0.07599793]
[1773216333324,2.6227687,85.54,85.515,0.07599793]
[1773216333731,3.97091995,85.543,85.515,0.07599793]
[1773216333929,3.97091995,85.543,85.5,2.6227687]
[1773216334729,3.97091995,85.543,85.501,2.05771422]
[1773216335232,3.97091995,85.543,85.513,0.07591209]
[1773216339839,4.07555654,85.569,85.521,2.00427769]
[1773216340139,6.69832524,85.56,85.521,2.00427769]
[1773216340340,4.07555654,85.559,85.521,2.00427769]
[1773216340738,4.07555654,85.549,85.51,2.6227687]
[1773216341047,4.07555654,85.547,85.5,2.6227687]
[1773216341737,4.07555654,85.547,85.515,0.07603641]
[1773216341939,4.07555654,85.559,85.515,0.07603641]
[1773216342239,4.07555654,85.559,85.52,2.6227687]
[1773216342439,4.07555654,85.557,85.515,1.99917049]
[1773216342839,4.07555654,85.557,85.531,0.07374902]
[1773216343041,2.6227687,85.55,85.502,2.00162692]
[1773216343236,0.0804329,85.545,85.502,2.00162692]
[1773216343441,4.07555654,85.544,85.502,2.00162692]
[1773216343742,4.07555654,85.544,85.503,10.525]
[1773216345639,4.07555654,85.544,85.502,2.00162692]
[1773216346135,0.0804329,85.545,85.5,2.6227687]
[1773216346136,0.0804329,85.545,85.51,2.6227687]
[1773216346342,4.15598944,85.545,85.51,2.6227687]
[1773216346538,4.15598944,85.545,85.5,4.63582262]
[1773216347444,4.07555654,85.543,85.5,4.63582262]
[1773216348644,4.07555654,85.543,85.501,10.525]
[1773216352545,4.07555654,85.543,85.501,12.53760822]
[1773216352745,4.07555654,85.543,85.502,2.01260822]
[1773216356040,4.07555654,85.543,85.49,11.78]
[1773216356041,2.6227687,85.54,85.494,10.526]
[1773216356347,3.83652488,85.539,85.494,10.526]
[1773216357451,3.83652488,85.538,85.494,10.526]
[1773216357646,3.83652488,85.538,85.494,12.58791084]
[1773216357849,0.0758422,85.525,85.5,4.68467954]
[1773216359548,0.0758422,85.525,85.5,2.06191084]
[1773216360352,3.91236708,85.525,85.492,11.78]
[1773216361145,3.83652488,85.524,85.492,11.78]
[1773216361344,3.83652488,85.524,85.487,2.07778652]
[1773216362242,3.83652488,85.524,85.483,10.527]
[1773216363054,3.83652488,85.524,85.484,2.05293597]
[1773216363254,3.83652488,85.524,85.487,10.527]
[1773216363445,3.83652488,85.524,85.488,2.05293597]
[1773216364154,0.0758422,85.525,85.498,2.05293597]
[1773216364346,0.0758422,85.525,85.5,4.67570467]
[1773216364851,3.83652488,85.546,85.5,4.67570467]
[1773216364852,3.83652488,85.546,85.501,2.07267215]
[1773216365450,0.08039963,85.532,85.501,2.07267215]
[1773216367154,0.08039963,85.532,85.498,11.78]
[1773216367355,3.91692451,85.532,85.498,11.78]
[1773216369160,2.6227687,85.53,85.498,11.78]
[1773216369556,3.91692451,85.532,85.498,11.78]
[1773216369859,3.91692451,85.532,85.498,13.83890974]
[1773216370972,10.522,85.53,85.498,13.83890974]
[1773216371161,3.83652488,85.529,85.498,11.78]
[1773216372458,3.83652488,85.529,85.49,2.6227687]
[1773216372459,3.83652488,85.519,85.47,2.6227687]
[1773216372658,3.83652488,85.509,85.471,11.78]
[1773216373462,3.83652488,85.509,85.467,11.78]
[1773216374259,0.07692702,85.497,85.467,11.78]
[1773216374459,0.07692702,85.497,85.467,22.309]
[1773216374663,0.07692702,85.497,85.464,2.01543192]
[1773216376760,0.07692702,85.497,85.465,10.53]
[1773216376966,0.07692702,85.497,85.466,1.93078929]
[1773216377865,3.9134519,85.497,85.462,11.78]
[1773216378069,3.9134519,85.497,85.446,11.78]
[1773216378070,3.83652488,85.489,85.446,11.78]
[1773216378270,0.07692702,85.497,85.44,2.6227687]
[1773216378271,3.83652488,85.479,85.444,1.93078929]
[1773216379263,3.83652488,85.479,85.43,1.93108914]
[1773216379462,3.83652488,85.479,85.434,1.93108914]
[1773216379667,3.83652488,85.479,85.44,4.55919198]
[1773216379868,0.07922015,85.463,85.44,4.55919198]
[1773216380569,0.07922015,85.463,85.442,1.94773005]
[1773216381479,0.07922015,85.463,85.446,10.532]
[1773216382368,0.07922015,85.463,85.442,1.94773005]
[1773216382564,0.07922015,85.463,85.429,13.72773005]
[1773216383173,3.7319783,85.468,85.429,13.72773005]
[1773216383573,0.07398826,85.455,85.429,13.72773005]
[1773216383774,0.07398826,85.455,85.432,12.47576839]
[1773216383972,0.07398826,85.455,85.432,1.94176839]
[1773216384973,3.80596656,85.455,85.416,1.94934647]
[1773216385174,2.6227687,85.45,85.416,13.72934647]
[1773216385875,3.7319783,85.449,85.404,1.94934647]
[1773216386081,3.7319783,85.449,85.4,2.6227687]
[1773216386488,3.8090053,85.442,85.4,2.6227687]
[1773216387184,2.6227687,85.44,85.4,2.6227687]
[1773216387585,6.3618399,85.44,85.4,2.6298616]
[1773216388380,3.7319783,85.439,85.4,2.6298616]
[1773216388587,3.7319783,85.436,85.392,1.94934647]
[1773216389588,0.07687665,85.423,85.392,1.94934647]
[1773216390487,0.07687665,85.423,85.392,12.48834647]
[1773216391586,0.07687665,85.423,85.391,2.03452852]
[1773216391587,0.07687665,85.423,85.405,2.0147086]
[1773216391790,3.7319783,85.448,85.405,2.0147086]
[1773216393889,2.6298616,85.44,85.405,2.0147086]
[1773216394093,3.7319783,85.439,85.405,2.0147086]
[1773216394783,3.7319783,85.439,85.4,10.538]
[1773216394991,3.7319783,85.439,85.413,0.07493877]
[1773216401685,3.7319783,85.439,85.39,2.6298616]
[1773216401686,3.94795678,85.429,85.384,10.539]
[1773216402294,3.94795678,85.419,85.373,2.03722025]
[1773216402499,3.94795678,85.419,85.367,2.04405868]
[1773216402500,3.94795678,85.409,85.367,2.04405868]
[1773216403195,0.0769967,85.397,85.367,2.04405868]
[1773216403591,0.0769967,85.397,85.369,12.60047152]
[1773216403791,0.0769967,85.397,85.37,2.6298616]
[1773216403992,0.0769967,85.397,85.369,12.60047152]
[1773216404386,0.0769967,85.397,85.37,2.05947152]
[1773216404789,0.0769967,85.397,85.38,2.0899866]
[1773216404996,0.0769967,85.397,85.357,11.8]
[1773216404997,3.94795678,85.436,85.391,2.0129899]
[1773216405210,2.6298616,85.43,85.391,2.0129899]
[1773216406701,2.6298616,85.43,85.402,0.07950723]
[1773216406998,3.94795678,85.436,85.402,0.07950723]
[1773216408598,3.94795678,85.432,85.402,0.07950723]
[1773216408799,3.94795678,85.429,85.402,0.07950723]
[1773216409298,3.94795678,85.429,85.387,12.55688912]
[1773216409700,3.94795678,85.429,85.407,0.08082002]
[1773216410703,8.83637144,85.488,85.408,2.01704314]
[1773216411003,2.6298616,85.47,85.427,2.01704314]
[1773216411197,3.93828003,85.469,85.42,2.6298616]
[1773216411396,2.6298616,85.46,85.414,2.01704314]
[1773216411598,2.6298616,85.46,85.416,2.01704314]
[1773216411904,3.93828003,85.465,85.421,2.01704314]
[1773216412197,3.93828003,85.465,85.428,0.0748061]
[1773216413300,21.048,85.512,85.428,0.0748061]
[1773216413301,3.93828003,85.459,85.428,0.0748061]
[1773216414004,3.93828003,85.449,85.41,2.6298616]
[1773216414703,3.93828003,85.449,85.421,0.07807124]
[1773216418304,2.6298616,85.46,85.421,0.07807124]
[1773216418498,6.56814163,85.46,85.421,0.07807124]
[1773216418706,3.93828003,85.459,85.421,0.07807124]
[1773216419108,3.93828003,85.459,85.421,2.19761145]
[1773216420508,2.6298616,85.47,85.422,2.11954021]
[1773216420705,3.93828003,85.483,85.441,2.13621987]
[1773216421009,3.93828003,85.483,85.45,2.6298616]
[1773216421406,3.93828003,85.496,85.45,4.76608147]
[1773216421611,3.93828003,85.496,85.46,2.6298616]
[1773216421809,3.93828003,85.496,85.451,2.13621987]
[1773216422108,14.46428003,85.496,85.464,0.07401649]
[1773216422613,3.93828003,85.495,85.464,0.07401649]
[1773216433315,3.93828003,85.495,85.435,11.78]
[1773216433316,2.6298616,85.49,85.44,2.6298616]
[1773216433518,21.042,85.538,85.427,2.20408397]
[1773216433519,3.93828003,85.479,85.43,2.6298616]
[1773216434013,3.93828003,85.479,85.44,2.6298616]
[1773216436003,2.6298616,85.49,85.44,2.6298616]
[1773216436004,3.93828003,85.477,85.44,2.6298616]
[1773216436315,3.93828003,85.477,85.431,10.534]
[1773216436615,3.93828003,85.469,85.431,10.534]
[1773216438707,10.529,85.469,85.43,2.6298616]
[1773216438911,2.6298616,85.46,85.41,2.6298616]
[1773216439108,3.93828003,85.449,85.406,2.19828114]
[1773216439314,3.93828003,85.449,85.4,2.6298616]
[1773216439919,3.93828003,85.449,85.403,10.537]
[1773216440114,3.93828003,85.449,85.403,12.73564712]
[1773216441814,3.91442775,85.448,85.403,12.73564712]
[1773216442014,3.91442775,85.448,85.403,2.19864712]
[1773216442515,3.91442775,85.445,85.403,2.19864712]
[1773216443816,0.07489002,85.433,85.403,2.19864712]
[1773216446117,0.07489002,85.433,85.4,2.6298616]
[1773216447716,0.07489002,85.433,85.402,2.28031957]
[1773216447916,0.07489002,85.433,85.41,2.6298616]
[1773216448214,2.6298616,85.42,85.39,2.28031957]
[1773216448419,3.927466,85.419,85.371,2.28031957]
[1773216449217,0.07419737,85.404,85.371,2.28031957]
[1773216449414,0.07419737,85.404,85.374,2.29034661]
[1773216450320,0.07419737,85.404,85.375,10.541]
[1773216450520,0.07419737,85.404,85.375,12.83134661]
[1773216450721,0.07419737,85.404,85.375,2.29034661]
[1773216451023,3.927466,85.399,85.359,11.8]
[1773216451221,3.927466,85.399,85.36,2.35414095]
[1773216453423,2.63119315,85.39,85.36,2.35414095]
[1773216454319,3.927466,85.399,85.363,2.37209741]
[1773216454926,2.63119315,85.39,85.363,2.37209741]
[1773216455621,2.63119315,85.41,85.365,2.36582964]
[1773216456326,2.63119315,85.41,85.367,10.542]
[1773216456627,2.63119315,85.4,85.368,2.36582964]
[1773216456819,3.927466,85.428,85.381,2.36395977]
[1773216457025,2.63119315,85.42,85.381,2.36395977]
[1773216457219,2.63119315,85.41,85.381,2.36395977]
[1773216458218,2.63119315,85.41,85.36,2.63119315]
[1773216458219,0.07403865,85.404,85.369,2.36395977]
[1773216458424,2.63119315,85.4,85.368,11.8]
[1773216458625,2.63119315,85.4,85.357,2.36395977]
[1773216458626,2.63119315,85.4,85.364,11.8]
[1773216459026,2.63119315,85.4,85.365,2.37085676]
[1773216459333,2.63119315,85.4,85.368,2.37085676]
[1773216460330,2.63119315,85.4,85.369,10.541]
[1773216460529,2.63119315,85.4,85.369,12.91207439]
[1773216462330,2.63119315,85.4,85.37,2.35207784]
[1773216464634,2.63119315,85.39,85.364,11.8]
[1773216465035,2.63119315,85.4,85.364,11.8]
[1773216465634,2.63119315,85.4,85.365,2.31775095]
[1773216468137,2.63119315,85.4,85.366,12.86579004]
[1773216468437,2.63119315,85.4,85.367,2.32379004]
[1773216471943,3.96040957,85.389,85.352,11.8]
[1773216472943,3.96040957,85.389,85.355,10.543]
[1773216473247,3.96040957,85.389,85.352,11.8]
[1773216474343,2.63119315,85.38,85.352,11.8]
[1773216477250,2.63119315,85.38,85.351,11.8]
[1773216477755,3.96040957,85.389,85.351,11.8]
[1773216478649,3.96040957,85.379,85.351,11.8]
[1773216480055,3.96040957,85.379,85.343,10.545]
[1773216480252,21.068,85.43,85.322,2.40110202]
[1773216480253,3.96040957,85.369,85.322,2.40110202]
[1773216480449,3.96040957,85.369,85.324,2.40110202]
[1773216480957,2.63119315,85.36,85.324,2.40110202]
[1773216481456,3.96040957,85.369,85.324,2.40110202]
[1773216481658,3.96040957,85.369,85.325,11.8]
[1773216481659,0.07435675,85.351,85.325,11.8]
[1773216482256,0.07435675,85.351,85.313,2.03876584]
[1773216482450,4.03476632,85.351,85.315,10.548]
[1773216482756,4.03476632,85.351,85.251,164.211]
[1773216482757,3.96040957,85.339,85.299,2.41326603]
[1773216482955,3.96040957,85.339,85.293,2.03913021]
[1773216482956,3.96040957,85.339,85.303,2.41326603]
[1773216483151,0.07435675,85.351,85.303,2.41326603]
[1773216483357,2.63119315,85.35,85.303,2.41326603]
[1773216483551,3.96040957,85.352,85.31,2.63119315]
[1773216483758,0.07489453,85.336,85.311,2.41326603]
[1773216484153,3.96040957,85.367,85.331,2.3383715]
[1773216484357,3.96040957,85.378,85.331,2.3383715]
[1773216484654,3.96040957,85.378,85.34,2.63119315]
[1773216484858,3.96040957,85.378,85.331,2.3383715]
[1773216485457,3.96040957,85.378,85.333,2.33847858]
[1773216486460,3.96040957,85.369,85.333,2.33847858]
[1773216487664,3.96040957,85.369,85.324,11.8]
[1773216487865,3.96040957,85.369,85.32,2.63119315]
[1773216488160,3.96040957,85.367,85.32,2.63119315]
[1773216488370,3.96040957,85.359,85.313,2.29180429]
[1773216489062,3.96040957,85.357,85.313,2.29180429]
[1773216489259,3.96040957,85.357,85.32,2.63119315]
[1773216489457,3.96040957,85.369,85.331,2.24494829]
[1773216490267,14.50240957,85.368,85.331,2.24494829]
[1773216490464,3.96040957,85.367,85.33,2.63119315]
[1773216490662,3.96040957,85.367,85.327,0.07690397]
[1773216490863,3.96040957,85.367,85.322,10.547]
[1773216491065,3.96040957,85.356,85.295,2.20706679]
[1773216491367,3.96040957,85.356,85.262,35.11]
[1773216491368,3.96040957,85.349,85.301,2.28678642]
[1773216491962,3.96040957,85.349,85.31,4.91797957]
[1773216492456,3.96040957,85.349,85.31,2.28678642]
[1773216492660,0.074662,85.338,85.31,4.91797957]
[1773216493463,0.074662,85.338,85.31,15.46697957]
[1773216493663,0.074662,85.338,85.283,2.29023926]
[1773216493664,3.96040957,85.329,85.283,2.29023926]
[1773216494773,0.07753512,85.315,85.284,12.80603398]
[1773216495068,0.07753512,85.315,85.284,2.25403398]
[1773216495268,0.07753512,85.315,85.286,10.552]
[1773216495667,0.07753512,85.315,85.29,2.63119315]
[1773216496263,0.07753512,85.315,85.286,10.552]
[1773216496462,0.07753512,85.315,85.29,2.63119315]
[1773216497167,3.96040957,85.356,85.301,2.27145356]
[1773216497365,3.96040957,85.356,85.273,2.03938115]
[1773216497366,3.96040957,85.379,85.34,2.63119315]
[1773216497873,3.96040957,85.379,85.33,2.63119315]
[1773216498465,2.63119315,85.38,85.331,10.546]
[1773216498466,3.96040957,85.377,85.331,10.546]
[1773216499466,10.541,85.375,85.345,0.07742777]